fUSD/lending_fUSD_20250330
["ID","MTS","AMOUNT","RATE_DAILY","PERIOD"]
[356854151,1743336646977,-346.99,0.00030671,2]
[356854153,1743336646987,-150.0,0.00030671,2]
[356854154,1743336646997,-150.0,0.00030671,2]
[356854157,1743336647007,-443.48,0.00030671,2]
[356854159,1743336647016,-150.0,0.00030671,2]
[356854160,1743336647025,-150.0,0.00030671,2]
[356854163,1743336647035,-150.0,0.00030671,2]
[356854165,1743336647044,-346.99,0.00030671,2]
[356854167,1743336647053,-150.0,0.00030671,2]
[356854168,1743336647062,-150.0,0.00030671,2]
[356854171,1743336647072,-150.0,0.00030671,2]
[356854172,1743336647081,-346.99,0.00030671,2]
[356854174,1743336647091,-443.48,0.00030671,2]
[356854177,1743336647100,-443.48,0.00030671,2]
[356854178,1743336647109,-150.0,0.00030671,2]
[356854181,1743336647120,-346.99,0.00030671,2]
[356854182,1743336647129,-150.0,0.00030671,2]
[356854185,1743336647139,-150.0,0.00030671,2]
[356854186,1743336647149,-150.0,0.00030671,2]
[356854188,1743336647158,-150.0,0.00030671,2]
[356854191,1743336647168,-346.99,0.00030671,2]
[356854193,1743336647177,-150.0,0.00030671,2]
[356854195,1743336647187,-443.48,0.00030671,2]
[356854197,1743336647196,-150.0,0.00030671,2]
[356854199,1743336647206,-443.48,0.00030671,2]
[356854201,1743336647215,-346.99,0.00030671,2]
[356854203,1743336647225,-150.0,0.00030671,2]
[356854205,1743336647234,-150.0,0.00030671,2]
[356854207,1743336647243,-209.61,0.00030671,2]
[356854209,1743336647253,-443.48,0.00030671,2]
[356854211,1743336647262,-443.48,0.00030671,2]
[356854213,1743336647272,-150.0,0.00030671,2]
[356854215,1743336647281,-150.0,0.00030671,2]
[356854216,1743336647291,-443.48,0.00030671,2]
[356854219,1743336647301,-150.0,0.00030671,2]
[356854220,1743336647310,-150.0,0.00030671,2]
[356854223,1743336647320,-871.76,0.00030671,2]
[356854224,1743336647329,-150.0,0.00030671,2]
[356854227,1743336647339,-443.48,0.00030671,2]
[356854229,1743336647349,-150.0,0.00030671,2]
[356854231,1743336647358,-443.48,0.00030671,2]
[356854233,1743336647367,-150.0,0.00030671,2]
[356854235,1743336647376,-443.48,0.00030671,2]
[356854237,1743336647386,-150.0,0.00030671,2]
[356854239,1743336647395,-1173.04,0.00030688,2]
[356854241,1743336647404,-1245.0,0.000307,2]
[356854242,1743336647414,-200262.60159687,0.00031,2]
[356854244,1743336647423,-400.0,0.00031,2]
[356854246,1743336647433,-163.3,0.00031386,2]
[356854249,1743336647442,-443.48,0.00031493,2]
[356854250,1743336647451,-443.48,0.00031493,2]
[356854252,1743336647461,-443.48,0.00031493,2]
[356854255,1743336647471,-443.48,0.00031493,2]
[356854257,1743336647480,-443.48,0.00031493,2]
[356854259,1743336647491,-418.79,0.00031493,2]
[356854261,1743336647500,-135491.67368231,0.0003154,2]
[356854263,1743336647509,-151.0,0.0003154,7]
[356854265,1743336647518,-1543.20791733,0.0003154,2]
[356854267,1743336647527,-643.0,0.00031622,2]
[356854268,1743336647536,-2039.0,0.00031622,2]
[356854270,1743336647546,-1274.0,0.00031622,2]
[356854273,1743336647557,-789.0,0.00031622,2]
[356854275,1743336647566,-908.0,0.00031622,2]
[356854276,1743336647575,-1083.533,0.00031622,2]
[356854279,1743336647585,-502.68924664,0.000318,2]
[356854281,1743336647594,-1000.0,0.00031821,2]
[356854282,1743336647603,-164.84,0.00031827,2]
[356854284,1743336647612,-202.56,0.00031868,2]
[356854287,1743336647622,-253.14,0.00032055,2]
[356854288,1743336647631,-1030.8188072,0.00032087,4]
[356854290,1743336647640,-193.61970565,0.000322,2]
[356854292,1743336647649,-2000.0,0.000323,2]
[356854294,1743336647659,-21070.40949475,0.00032309,2]
[356854297,1743336647668,-1041.40499219,0.00032431,5]
[356854299,1743336647677,-1480.92226085,0.00032456,2]
[356854301,1743336647686,-5096.469771,0.00032478,2]
[356854312,1743336647785,-1966.90364369,0.000325,2]
[356854314,1743336647794,-45452.99821064,0.00032603,2]
[356854316,1743336647803,-249.27,0.00032646,2]
[356854318,1743336647814,-236.65,0.00032646,2]
[356854320,1743336647823,-368.05,0.00032646,2]
[356854322,1743336647832,-499.575,0.0003282,2]
[356854324,1743336647841,-151.0,0.0003282,2]
[356854326,1743336647850,-3947.0,0.0003282,2]
[356854328,1743336647859,-150.0,0.00032846,2]
[356854329,1743336647868,-1000.0,0.00032858,2]
[356854331,1743336647877,-154.03,0.00032877,2]
[356854333,1743336647886,-202.43854032,0.00032927,2]
[356854335,1743336647895,-161.39,0.00032932,120]
[356854337,1743336647904,-150.0,0.0003295,2]
[356854339,1743336647914,-1173.04,0.00032951,2]
[356854341,1743336647923,-150.0,0.00032954,2]
[356854343,1743336647932,-919.60179343,0.00032965,2]
[356854345,1743336647941,-190.67787712,0.00032987,2]
[356854347,1743336647950,-3004.71940854,0.00032987,2]
[356854349,1743336647959,-163.97522962,0.00032987,2]
[356854352,1743336647969,-4979.73064348,0.00032987,2]
[356854354,1743336647979,-450.0,0.00033,2]
[356854356,1743336647988,-212.0,0.00033,2]
[356854358,1743336647997,-150.0,0.00033018,2]
[356854359,1743336648006,-150.0,0.00033034,2]
[356854361,1743336648016,-150.0,0.00033052,2]
[356854364,1743336648025,-3397.1068722,0.00033057,2]
[356854366,1743336648034,-5581.8478445,0.00033065,2]
[356854368,1743336648045,-431.13449923,0.00033077,2]
[356854370,1743336648053,-115396.08307312,0.00033079,30]
[356854380,1743336648316,-274603.91692688,0.00033079,30]
[356854382,1743336648326,-443.8209465,0.00033087,30]
[356854384,1743336648336,-150.55117637,0.00033087,2]
[356854386,1743336648346,-247.88718971,0.00033087,2]
[356854388,1743336648356,-163.59769898,0.00033087,2]
[356854390,1743336648365,-1255.41178351,0.00033087,2]
[356854392,1743336648375,-7680.94219349,0.00033087,2]
[356854394,1743336648384,-1036.24600148,0.00033087,2]
[356854396,1743336648394,-591.82291148,0.00033087,2]
[356854398,1743336648403,-9193.18447063,0.00033087,2]
[356854400,1743336648413,-1305.05900225,0.00033087,2]
[356854402,1743336648423,-3403.77826137,0.00033087,2]
[356854405,1743336648433,-39480.45043472,0.00033087,2]
[356854406,1743336648443,-10207.2133649,0.00033087,2]
[356854408,1743336648452,-1911.79269009,0.00033087,2]
[356854411,1743336648463,-183.15612922,0.00033087,2]
[356854412,1743336648473,-643.0,0.00033087,2]
[356854414,1743336648483,-965.4987276,0.00033087,2]
[356854416,1743336648492,-4225.9290031,0.00033087,2]
[356854419,1743336648501,-915.70576739,0.00033087,2]
[356854421,1743336648511,-13031.64335752,0.00033087,2]
[356854423,1743336648521,-216.78894494,0.00033087,2]
[356854424,1743336648531,-560.65896442,0.00033087,2]
[356854426,1743336648540,-150.0,0.00033087,2]
[356854428,1743336648549,-7740.3696347,0.00033087,2]
[356854430,1743336648559,-604.40762071,0.00033087,2]
[356854433,1743336648568,-623.52717485,0.00033087,2]
[356854434,1743336648578,-213.75012504,0.00033087,2]
[356854436,1743336648588,-41434.64547046,0.00033087,2]
[356854438,1743336648597,-8105.72807279,0.00033087,2]
[356854440,1743336648606,-228.68124813,0.00033087,2]
[356854442,1743336648616,-10004.93010666,0.00033087,2]
[356854444,1743336648625,-556.34398263,0.00033087,2]
[356854446,1743336648635,-209318.96944134,0.00033087,2]
[356854448,1743336648644,-12746.0,0.00033087,21]
[356854450,1743336648655,-581.10809601,0.00033087,30]
[356854453,1743336648664,-11532.0,0.00033093,30]
[356854455,1743336648674,-151.0,0.00033096,7]
[356854456,1743336648683,-215.4860046,0.000331,2]
[356854458,1743336648692,-337.2075,0.000331,2]
[356854460,1743336648701,-150.0,0.00033432,120]
[356854462,1743336648710,-153.87,0.000335,31]
[356854464,1743336648719,-153.87,0.000335,31]
[356854466,1743336648729,-153.87,0.000335,31]
[356854468,1743336648743,-153.87,0.000335,31]
[356854470,1743336648753,-153.87,0.000335,31]
[356854472,1743336648764,-153.87,0.000335,31]
[356854474,1743336648773,-153.87,0.000335,31]
[356854476,1743336648784,-153.87,0.000335,31]
[356854478,1743336648793,-191.70379971,0.00033833,2]
[356854480,1743336648803,-1480.92226085,0.00034367,2]
[356854482,1743336648813,-1966.90364369,0.000344,2]
[356854484,1743336648822,-501.54795482,0.00034469,2]
[356854486,1743336648832,-150.0,0.00034548,10]
[356854488,1743336648842,-150.0,0.00034611,30]
[356854490,1743336648853,-150.0,0.00034611,30]
[356854492,1743336648862,-225.82823407,0.00034611,30]
[356854494,1743336648872,-192.01948199,0.00034611,30]
[356854496,1743336648882,-240.95367397,0.00034611,30]
[356854498,1743336648891,-643.0,0.00034622,2]
[356854500,1743336648901,-965.138,0.00034622,2]
[356854502,1743336648910,-299.088,0.00034622,2]
[356854504,1743336648920,-248.582,0.00034622,2]
[356854506,1743336648929,-900.0,0.00034713,13]
[356854508,1743336648938,-900.0,0.00034713,13]
[356854510,1743336648947,-900.0,0.00034713,13]
[356854512,1743336648956,-537.58417674,0.00034713,13]
[356854514,1743336648966,-500.0,0.00035,2]
[356854516,1743336648975,-810.57,0.00035068,2]
[356854530,1743336649094,-2000.0,0.000351,2]
[356854532,1743336649104,-1173.04,0.00035215,2]
[356854534,1743336649114,-150.0,0.00035616,2]
[356854536,1743336649123,-209.393388,0.00035693,7]
[356854538,1743336649136,-151.0,0.0003582,2]
[356854540,1743336649146,-3947.0,0.0003582,2]
[356854542,1743336649155,-50000.0,0.00036,50]
[356854544,1743336649165,-1480.92226085,0.00036278,2]
[356854546,1743336649175,-1966.90364369,0.000363,2]
[356854548,1743336649184,-150.0,0.00036554,2]
[356854550,1743336649194,-153.87,0.000367,31]
[356854552,1743336649203,-153.87,0.000367,31]
[356854554,1743336649213,-153.87,0.000367,31]
[356854556,1743336649222,-153.87,0.000367,31]
[356854558,1743336649231,-153.87,0.000367,31]
[356854560,1743336649240,-153.87,0.000367,31]
[356854562,1743336649250,-153.87,0.000367,31]
[356854564,1743336649260,-153.87,0.000367,31]
[356854566,1743336649269,-153.87,0.000367,31]
[356854568,1743336649279,-153.87,0.000367,31]
[356854570,1743336649288,-153.87,0.000367,31]
[356854572,1743336649297,-153.87,0.000367,31]
[356854574,1743336649306,-153.87,0.000367,31]
[356854576,1743336649316,-153.87,0.000367,31]
[356854578,1743336649325,-153.87,0.000367,31]
[356854580,1743336649335,-153.87,0.000367,31]
[356854582,1743336649346,-209.0,0.0003682,2]
[356854584,1743336649355,-550.0,0.00037,2]
[356854586,1743336649365,-150.0,0.00037258,2]
[356854588,1743336649375,-150.0,0.00037258,2]
[356854590,1743336649385,-150.0,0.00037258,2]
[356854592,1743336649394,-150.0,0.00037258,2]
[356854594,1743336649404,-150.0,0.00037258,2]
[356854596,1743336649413,-150.0,0.00037258,2]
[356854598,1743336649423,-272.18555518,0.00037415,30]
[356854600,1743336649433,-150.0,0.00037415,30]
[356854602,1743336649443,-179.71836841,0.00037415,30]
[356854604,1743336649454,-161.12830819,0.00037415,30]
[356854606,1743336649463,-1173.04,0.00037479,2]
[356854607,1743336649473,-150.0,0.00037491,2]
[356854609,1743336649483,-643.0,0.00037622,2]
[356854611,1743336649492,-209.0,0.0003778,2]
[356854614,1743336649502,-2000.0,0.000378,2]
[356854616,1743336649512,-174.99083414,0.00038,120]
[356854618,1743336649522,-300.0,0.00038,2]
[356854620,1743336649532,-300.0,0.00038,2]
[356854622,1743336649542,-500.0,0.00038126,2]
[356854624,1743336649551,-1480.92226085,0.00038189,2]
[356854626,1743336649561,-1966.90364369,0.000382,2]
[356854628,1743336649570,-152.33948265,0.00038281,14]
[356854630,1743336649580,-3684.460375,0.0003833,2]
[356854632,1743336649589,-42625.1461808,0.00038356,7]
[356854634,1743336649598,-187.87681589,0.00038356,7]
[356854636,1743336649609,-300.0,0.0003838,2]
[356854638,1743336649618,-300.0,0.0003838,2]
[356854639,1743336649627,-150.0,0.00038428,2]
[356854641,1743336649636,-249.27,0.00038443,2]
[356854643,1743336649646,-236.65,0.00038443,2]
[356854646,1743336649656,-368.05,0.00038443,2]
[356854647,1743336649665,-500.0,0.00038699,60]
[356854649,1743336649675,-22726.48,0.000387,4]
[356854652,1743336649684,-209.0,0.0003873,2]
[356854654,1743336649694,-300.0,0.0003876,2]
[356854656,1743336649704,-300.0,0.0003876,2]
[356854658,1743336649713,-151.0,0.0003882,2]
[356854660,1743336649723,-3218.757,0.0003882,2]
[356854662,1743336649733,-191.70379971,0.0003885,2]
[356854663,1743336649745,-600.0,0.00039,2]
[356854665,1743336649755,-161.39,0.00039089,120]
[356854667,1743336649764,-300.0,0.0003914,2]
[356854669,1743336649773,-300.0,0.0003914,2]
[356854671,1743336649784,-500.0,0.00039247,60]
[356854673,1743336649794,-150.0,0.00039366,2]
[356854675,1743336649803,-300.0,0.0003952,2]
[356854677,1743336649813,-300.0,0.0003952,2]
[356854679,1743336649822,-202.56,0.000396,2]
[356854681,1743336649831,-209.0,0.0003968,2]
[356854683,1743336649841,-1173.04,0.00039743,2]
[356854685,1743336649851,-500.0,0.00039795,60]
[356854687,1743336649860,-168.0,0.000398,30]
[356854689,1743336649870,-80000.0,0.0003987,2]
[356854691,1743336649879,-918.42,0.000399,2]
[356854693,1743336649889,-153.87,0.000399,31]
[356854695,1743336649900,-153.87,0.000399,31]
[356854698,1743336649910,-153.87,0.000399,31]
[356854700,1743336649920,-153.87,0.000399,31]
[356854702,1743336649929,-153.87,0.000399,31]
[356854704,1743336649939,-153.87,0.000399,31]
[356854706,1743336649949,-153.87,0.000399,31]
[356854708,1743336649958,-153.87,0.000399,31]
[356854710,1743336649968,-153.87,0.000399,31]
[356854712,1743336649977,-153.87,0.000399,31]
[356854714,1743336649986,-153.87,0.000399,31]
[356854716,1743336649996,-153.87,0.000399,31]
[356854718,1743336650005,-153.87,0.000399,31]
[356854720,1743336650015,-153.87,0.000399,31]
[356854722,1743336650024,-153.87,0.000399,31]
[356854724,1743336650033,-153.87,0.000399,31]
[356854726,1743336650042,-450.0,0.000399,4]
[356854728,1743336650051,-450.0,0.000399,4]
[356854730,1743336650061,-700.0,0.0003997,2]
[356854732,1743336650070,-150.0,0.00039999,2]
[356854734,1743336650079,-3978.01414855,0.0004,4]
[356854736,1743336650089,-90000.0,0.0004,16]
[356854738,1743336650098,-500.0,0.0004,10]
[356854740,1743336650107,-8332.76333996,0.0004,2]
[356854742,1743336650116,-2300.20753559,0.0004,14]
[356854744,1743336650125,-759.73630261,0.0004,120]
[356854746,1743336650134,-174.99083414,0.0004,120]
[356854748,1743336650143,-189597.6942984,0.0004,30]
[356854750,1743336650152,-500.0,0.0004,120]
[356854752,1743336650161,-2794.4767653,0.0004,30]
[356854754,1743336650170,-3500.0,0.0004,120]
[356854756,1743336650179,-508.610423,0.0004,10]
[356854758,1743336650189,-10005.38120109,0.0004,5]
[356854760,1743336650197,-1966.90364369,0.000401,15]
[356854762,1743336650206,-1480.92226085,0.000401,15]
[356854764,1743336650215,-50000.0,0.0004018,4]
[356854766,1743336650224,-918.42,0.000402,2]
[356854768,1743336650233,-300.0,0.0004028,4]
[356854770,1743336650242,-918.42,0.000403,2]
[356854772,1743336650251,-150.0,0.00040303,2]
[356854773,1743336650261,-6067.2259179,0.00040303,2]
[356854775,1743336650270,-69839.7196618,0.0004033,3]
[356854777,1743336650279,-500.0,0.00040343,60]
[356854780,1743336650289,-71550.24987173,0.0004044,3]
[356854782,1743336650298,-2000.0,0.000405,2]
[356854784,1743336650308,-918.42,0.000405,2]
[356854786,1743336650317,-209.0,0.0004057,2]
[356854788,1743336650326,-209.0,0.0004063,2]
[356854790,1743336650335,-22726.48,0.000407,8]
[356854792,1743336650344,-176.030316,0.00040798,120]
[356854794,1743336650353,-67544.3272765,0.0004083,2]
[356854796,1743336650365,-500.0,0.00040877,31]
[356854798,1743336650374,-500.0,0.00040877,31]
[356854800,1743336650383,-500.0,0.00040877,31]
[356854802,1743336650392,-500.0,0.00040877,31]
[356854804,1743336650401,-500.0,0.00040877,31]
[356854806,1743336650410,-500.0,0.00040877,31]
[356854808,1743336650419,-500.0,0.00040877,31]
[356854810,1743336650428,-500.0,0.00040877,31]
[356854812,1743336650437,-500.0,0.00040877,31]
[356854823,1743336650528,-500.0,0.00040877,31]
[356854825,1743336650537,-500.0,0.00040877,31]
[356854827,1743336650546,-500.0,0.00040877,31]
[356854828,1743336650555,-500.0,0.00040877,31]
[356854830,1743336650567,-500.0,0.00040877,31]
[356854832,1743336650575,-500.0,0.00040877,31]
[356854834,1743336650584,-500.0,0.00040877,31]
[356854836,1743336650594,-500.0,0.00040877,31]
[356854838,1743336650603,-500.0,0.00040877,31]
[356854840,1743336650612,-603.88340951,0.00040877,31]
[356854842,1743336650621,-500.0,0.00040877,31]
[356854844,1743336650630,-500.0,0.00040877,31]
[356854846,1743336650639,-562.00151284,0.00040877,31]
[356854848,1743336650649,-562.00151284,0.00040877,31]
[356854850,1743336650659,-562.00151284,0.00040877,31]
[356854853,1743336650668,-562.00151284,0.00040877,31]
[356854855,1743336650677,-562.00151284,0.00040877,31]
[356854856,1743336650686,-562.00151284,0.00040877,31]
[356854859,1743336650695,-500.0,0.00040891,60]
[356854861,1743336650704,-36526.10439273,0.000409,2]
[356854862,1743336650714,-2005.81,0.00041,60]
[356854864,1743336650723,-2687.09149325,0.00041,30]
[356854866,1743336650731,-918.42,0.00041,2]
[356854869,1743336650745,-650.0,0.00041,2]
[356854870,1743336650754,-156.0,0.00041,14]
[356854873,1743336650763,-400.0,0.0004107,3]
[356854875,1743336650772,-700.0,0.00041095,90]
[356854877,1743336650783,-329.72988227,0.00041095,90]
[356854879,1743336650792,-200.98861652,0.00041096,10]
[356854881,1743336650801,-1000.0,0.00041096,6]
[356854883,1743336650811,-1000.0,0.00041096,6]
[356854885,1743336650820,-2000.0,0.00041096,90]
[356854887,1743336650829,-1629.0,0.00041096,90]
[356854889,1743336650838,-181.27216171,0.00041096,2]
[356854891,1743336650847,-507.226,0.00041096,120]
[356854893,1743336650856,-2343.78,0.000411,2]
[356854895,1743336650866,-829.77,0.000411,2]
[356854896,1743336650875,-2952.62,0.000411,2]
[356854898,1743336650884,-2499.65,0.000411,2]
[356854901,1743336650894,-337.2075,0.000411,2]
[356854902,1743336650904,-4778.96314416,0.00041119,2]
[356854904,1743336650913,-1000.0,0.00041233,20]
[356854906,1743336650922,-150.0,0.0004124,2]
[356854908,1743336650931,-258.35548941,0.00041282,30]
[356854910,1743336650941,-150.0,0.00041282,30]
[356854912,1743336650950,-150.0,0.00041282,30]
[356854915,1743336650959,-150.0,0.00041282,30]
[356854917,1743336650969,-476.27399169,0.00041282,30]
[356854919,1743336650978,-263.51547803,0.00041282,30]
[356854921,1743336650987,-565.87769369,0.00041282,30]
[356854922,1743336650996,-1000.0,0.0004137,20]
[356854924,1743336651005,-400.0,0.0004137,3]
[356854926,1743336651014,-1000.0,0.00041507,20]
[356854928,1743336651023,-209.0,0.0004155,2]
[356854930,1743336651032,-210.0,0.0004158,2]
[356854932,1743336651041,-209.0,0.0004158,2]
[356854934,1743336651051,-204.0,0.0004158,30]
[356854936,1743336651059,-1000.0,0.00041644,20]
[356854938,1743336651069,-150.0,0.00041918,30]
[356854940,1743336651078,-150.0,0.00041918,30]
[356854942,1743336651088,-150.0,0.00041918,30]
[356854944,1743336651097,-150.0,0.00041918,30]
[356854947,1743336651107,-500.0,0.00041987,60]
[356854948,1743336651116,-150.0,0.00041994,30]
[356854951,1743336651125,-1000.0,0.00042,2]
[356854953,1743336651134,-41023.628396,0.00042,2]
[356854955,1743336651143,-19430.54107166,0.00042,2]
[356854957,1743336651152,-670.202157,0.00042,43]
[356854959,1743336651161,-3079.64690795,0.00042,30]
[356855026,1743336651924,-174.582321,0.000231,7]
[356855028,1743336651933,-174.582321,0.000231,7]
[356855030,1743336651942,-174.582321,0.000231,7]
[356855032,1743336651951,-174.582321,0.000231,7]
[356855034,1743336651960,-174.582321,0.000231,7]
[356855036,1743336651969,-174.582321,0.000231,7]
[356855038,1743336651978,-174.582321,0.000232,7]
[356855040,1743336651987,-174.582321,0.000232,7]
[356855042,1743336651996,-174.582321,0.000232,7]
[356855044,1743336652005,-174.582321,0.000232,7]
[356855046,1743336652014,-174.582321,0.000232,7]
[356855048,1743336652024,-500.0,0.00027397,2]
[356855050,1743336652033,-500.0,0.00027424,2]
[356855052,1743336652042,-503.84058145,0.00027452,2]
[356855054,1743336652050,-172.06262042,0.00032987,6]
[356855056,1743336652060,-7147.44078162,0.00042,30]
[356855058,1743336652069,-3052.47325795,0.00042,120]
[356855060,1743336652078,-1140.036,0.00042,5]
[356855062,1743336652087,-283.0,0.00042,120]
[356855064,1743336652096,-3008.93,0.00042,120]
[356855066,1743336652105,-2866.16,0.00042,120]
[356855068,1743336652114,-150.0,0.00042001,30]
[356855070,1743336652123,-1173.04,0.00042007,2]
[356855072,1743336652132,-1329.76918521,0.0004201,2]
[356855074,1743336652141,-150.0,0.0004207,30]
[356855076,1743336652151,-150.0,0.00042084,30]
[356855078,1743336652161,-150.0,0.00042084,30]
[356855080,1743336652170,-1000.0,0.0004214,20]
[356855082,1743336652179,-150.0,0.00042147,30]
[356855084,1743336652193,-150.0,0.00042167,30]
[356855086,1743336652203,-150.0,0.00042177,2]
[356855088,1743336652213,-150.0,0.00042223,30]
[356855090,1743336652222,-150.0,0.0004225,30]
[356855092,1743336652233,-150.0,0.0004225,30]
[356855095,1743336652243,-150.0,0.00042299,30]
[356855096,1743336652252,-150.0,0.00042333,30]
[356855098,1743336652262,-150.0,0.00042376,30]
[356855100,1743336652271,-150.0,0.00042383,30]
[356855103,1743336652281,-150.0,0.00042417,30]
[356855104,1743336652290,-150.0,0.00042417,30]
[356855106,1743336652299,-150.0,0.00042452,30]
[356855109,1743336652309,-400.0,0.0004247,3]
[356855111,1743336652319,-218.71798214,0.00042484,3]
[356855113,1743336652329,-150.0,0.000425,30]
[356855115,1743336652339,-501.99,0.000425,5]
[356855117,1743336652348,-150.0,0.00042528,30]
[356855119,1743336652358,-210.0,0.0004253,2]
[356855121,1743336652369,-209.0,0.0004253,2]
[356855124,1743336652388,-204.0,0.0004253,30]
[356855127,1743336652404,-211.0,0.0004253,30]
[356855130,1743336652424,-209.0,0.0004253,2]
[356855132,1743336652440,-89.34676746,0.00042583,30]
[356855135,1743336652460,-60.65323254,0.00042583,30]
[356855138,1743336652475,-150.0,0.00042583,30]
[356855141,1743336652494,-150.0,0.00042605,30]
[356855144,1743336652514,-150.0,0.00042666,30]
[356855147,1743336652532,-150.0,0.00042681,30]
[356855150,1743336652550,-1030.88778434,0.000427,30]
[356855153,1743336652569,-4.39688172,0.00042739,60]
[356855214,1743336653145,-0.03071338,0.000231,7]
[356855477,1743336655766,-174.55160762,0.000231,7]
[356855479,1743336655775,-119.25066313,0.000231,7]
[356859565,1743336762020,150.0,0.00033087,30]
[356859567,1743337510268,-386.71450965,0.00015,2]
[356859568,1743337527080,216.29093458,0.0003305,30]
[356859569,1743337557364,220957.90174746,0.0003305,30]
[356859576,1743337681887,-150.0,0.00014999,2]
[356859577,1743337681920,-8.57130425,0.00015,2]
[356859642,1743337831565,-551.4292918,0.000149,2]
[356859645,1743337831722,-187.60934176,0.000149,2]
[356859646,1743337831732,-163.33020747,0.000149,2]
[356859647,1743337831743,-370.26838776,0.00015,2]
[356859648,1743337831771,-636.84170514,0.00015,2]
[356859649,1743337831782,-798.32798818,0.00015,2]
[356859650,1743337831793,-450.653,0.00015,2]
[356859651,1743337831816,-693.46268309,0.00015,2]
[356859652,1743337831827,-416.77671131,0.00015,2]
[356859653,1743337831844,-2400.16032161,0.00015,2]
[356859654,1743337831855,-6264.79021353,0.00015,2]
[356859655,1743337831866,-2578.64858241,0.00015,2]
[356859656,1743337831878,-13254.4910038,0.00015,2]
[356859657,1743337831889,-684.71908266,0.00015,2]
[356859658,1743337831900,-11437.23281721,0.00015,2]
[356859659,1743337831923,-6294.04637483,0.00015,2]
[356859660,1743337831934,-533.22015203,0.00015,2]
[356859661,1743337831945,-458.11714593,0.00015,2]
[356859682,1743337837566,-707.52369912,0.00015,2]
[356859683,1743337837578,-7346.98753722,0.00015,2]
[356859684,1743337837624,-516.25621153,0.00015,2]
[356859685,1743337837636,-517.34603854,0.00015,2]
[356859686,1743337837648,-3379.92,0.00015,2]
[356859687,1743337837660,-126712.52591296,0.00015,2]
[356859688,1743337837671,-391.38267744,0.00015,2]
[356859689,1743337837682,-1105.0,0.00015,2]
[356859690,1743337837693,-9198.4377232,0.00015,2]
[356859691,1743337837746,-4839.64674708,0.00015,2]
[356859692,1743337837758,-500.0,0.00015,2]
[356859701,1743337839749,-520.0738,0.00015,2]
[356859702,1743337839761,-1133.05,0.00015,2]
[356859703,1743337839807,-947.01167179,0.00015,2]
[356859704,1743337839819,-1279.73762639,0.00015,2]
[356859705,1743337839830,-434.54746564,0.00015,2]
[356859706,1743337839864,-643.65507974,0.00015,2]
[356859707,1743337840050,-284.99,0.00015,2]
[356859727,1743337842701,-812.54487307,0.00015,2]
[356859728,1743337842764,-679.0120005,0.00015,2]
[356859729,1743337842776,-748.0560267,0.00015,2]
[356859730,1743337842787,-625.982,0.00015,2]
[356859731,1743337842818,-30093.28914577,0.00015,2]
[356859732,1743337842830,-58224.51978168,0.00015,2]
[356859923,1743337844953,-681.50663455,0.00015,2]
[356859927,1743337844976,-814.82264092,0.00015,2]
[356860017,1743337845766,-2818.15620832,0.00015,2]
[356860019,1743337845777,-468.68885309,0.00015,2]